[Event "Titled Tuesday Blitz September 13 Late 2022"]
[White "Rustemov, Alexander"]
[Black "Barp, Alberto"]
[WhiteFideId "4119002"]
[BlackFideId "872555"]
[WhiteElo "2867"]
[BlackElo "2229"]
[Result "1-0"]
[Round "02"]
[TimeControl "180+1"]
[Date "2022.09.13"]
[WhiteClock "0:00:09"]
[BlackClock "0:00:04"]

1. d4 {[%clk 0:03:00]}  Nf6 {[%clk 0:02:56]} 2. c4 {[%clk 0:03:01]}  e6 {[%clk 0:02:55]} 3. Nf3 {[%clk 0:03:01]}  a6 {[%clk 0:02:54]} 4. Nc3 {[%clk 0:03:01]}  d5 {[%clk 0:02:54]} 5. cxd5 {[%clk 0:03:01]}  exd5 {[%clk 0:02:54]} 6. Bg5 {[%clk 0:03:02]}  Be6 {[%clk 0:02:54]} 7. e3 {[%clk 0:03:02]}  h6 {[%clk 0:02:52]} 8. Bh4 {[%clk 0:03:01]}  Nbd7 {[%clk 0:02:51]} 9. Bd3 {[%clk 0:03:01]}  Bd6 {[%clk 0:02:52]} 10. Qc2 {[%clk 0:03:00]}  c6 {[%clk 0:02:51]} 11. O-O {[%clk 0:03:00]}  O-O {[%clk 0:02:51]} 12. Rab1 {[%clk 0:02:59]}  a5 {[%clk 0:02:46]} 13. a3 {[%clk 0:02:58]}  Rc8 {[%clk 0:02:41]} 14. Rfc1 {[%clk 0:02:57]}  b5 {[%clk 0:02:28]} 15. Bg3 {[%clk 0:02:51]}  Qe7 {[%clk 0:02:28]} 16. Bxd6 {[%clk 0:02:49]}  Qxd6 {[%clk 0:02:28]} 17. h3 {[%clk 0:02:37]}  Rfe8 {[%clk 0:02:24]} 18. Ne2 {[%clk 0:02:27]}  a4 {[%clk 0:02:18]} 19. b3 {[%clk 0:01:48]}  axb3 {[%clk 0:02:17]} 20. Rxb3 {[%clk 0:01:48]}  Nb6 {[%clk 0:02:00]} 21. Qc3 {[%clk 0:01:39]}  Nc4 {[%clk 0:01:57]} 22. Qb4 {[%clk 0:01:38]}  Qxb4 {[%clk 0:01:48]} 23. axb4 {[%clk 0:01:37]}  Nd7 {[%clk 0:01:45]} 24. Rbb1 {[%clk 0:01:33]}  Ra8 {[%clk 0:01:44]} 25. Ra1 {[%clk 0:01:33]}  f6 {[%clk 0:01:37]} 26. Nf4 {[%clk 0:01:30]}  Bf7 {[%clk 0:01:37]} 27. Be2 {[%clk 0:01:28]}  g5 {[%clk 0:01:33]} 28. Nd3 {[%clk 0:01:28]}  Bg6 {[%clk 0:01:33]} 29. Nc5 {[%clk 0:01:27]}  Ndb6 {[%clk 0:01:27]} 30. Bf1 {[%clk 0:01:05]}  Kf7 {[%clk 0:01:25]} 31. Ne1 {[%clk 0:01:02]}  Ke7 {[%clk 0:01:24]} 32. Ned3 {[%clk 0:01:02]}  Kd6 {[%clk 0:01:16]} 33. g3 {[%clk 0:01:00]}  Rxa1 {[%clk 0:00:54]} 34. Rxa1 {[%clk 0:01:00]}  Ra8 {[%clk 0:00:55]} 35. Rxa8 {[%clk 0:00:59]}  Nxa8 {[%clk 0:00:55]} 36. Be2 {[%clk 0:00:55]}  Nab6 {[%clk 0:00:44]} 37. Kf1 {[%clk 0:00:55]}  Na3 {[%clk 0:00:37]} 38. Bd1 {[%clk 0:00:51]}  Nb1 {[%clk 0:00:25]} 39. Ke1 {[%clk 0:00:49]}  Nc3 {[%clk 0:00:25]} 40. Bb3 {[%clk 0:00:48]}  Nc4 {[%clk 0:00:23]} 41. h4 {[%clk 0:00:37]}  Bf5 {[%clk 0:00:22]} 42. Nb7+ {[%clk 0:00:36]}  Kc7 {[%clk 0:00:21]} 43. Ndc5 {[%clk 0:00:32]}  Bc8 {[%clk 0:00:19]} 44. Na5 {[%clk 0:00:32]}  Kb6 {[%clk 0:00:08]} 45. hxg5 {[%clk 0:00:25]}  fxg5 {[%clk 0:00:08]} 46. Nd3 {[%clk 0:00:23]}  Nxa5 {[%clk 0:00:06]} 47. bxa5+ {[%clk 0:00:23]}  Kxa5 {[%clk 0:00:07]} 48. Kd2 {[%clk 0:00:23]}  Ne4+ {[%clk 0:00:06]} 49. Ke2 {[%clk 0:00:22]}  Kb6 {[%clk 0:00:06]} 50. Ne5 {[%clk 0:00:19]}  Be6 {[%clk 0:00:07]} 51. g4 {[%clk 0:00:18]}  Nf6 {[%clk 0:00:07]} 52. f3 {[%clk 0:00:17]}  h5 {[%clk 0:00:07]} 53. gxh5 {[%clk 0:00:17]}  Nxh5 {[%clk 0:00:08]} 54. Bc2 {[%clk 0:00:15]}  Nf6 {[%clk 0:00:08]} 55. Nd3 {[%clk 0:00:15]}  Bf5 {[%clk 0:00:07]} 56. Kd2 {[%clk 0:00:15]}  Bxd3 {[%clk 0:00:08]} 57. Bxd3 {[%clk 0:00:15]}  Ne8 {[%clk 0:00:08]} 58. e4 {[%clk 0:00:15]}  Nd6 {[%clk 0:00:09]} 59. e5 {[%clk 0:00:13]}  Nc4+ {[%clk 0:00:09]} 60. Kc3 {[%clk 0:00:12]}  Kc7 {[%clk 0:00:09]} 61. Kb4 {[%clk 0:00:11]}  Kb6 {[%clk 0:00:08]} 62. Bg6 {[%clk 0:00:10]}  Nd2 {[%clk 0:00:07]} 63. e6 {[%clk 0:00:09]}  Nxf3 {[%clk 0:00:05]} 64. e7 {[%clk 0:00:10]}  Nxd4 {[%clk 0:00:04]} 65. e8=Q {[%clk 0:00:09]} 1-0


[Site "https://www.chess.com"]

[Event "Titled Tuesday Blitz September 13 Late 2022"]
[White "Sjugirov, Sanan"]
[Black "Llorente Zaro, Alfonso"]
[WhiteFideId "4189302"]
[BlackFideId "2254131"]
[WhiteElo "2609"]
[BlackElo "2485"]
[Result "1-0"]
[Round "02"]
[TimeControl "180+1"]
[Date "2022.09.13"]
[WhiteClock "0:00:04"]
[BlackClock "0:00:04"]

1. e4 {[%clk 0:03:00]}  d6 {[%clk 0:02:53]} 2. d4 {[%clk 0:03:00]}  Nf6 {[%clk 0:02:53]} 3. Bd3 {[%clk 0:02:56]}  e5 {[%clk 0:02:53]} 4. c3 {[%clk 0:02:55]}  d5 {[%clk 0:02:54]} 5. dxe5 {[%clk 0:02:54]}  Nxe4 {[%clk 0:02:54]} 6. Nf3 {[%clk 0:02:54]}  Nc6 {[%clk 0:02:53]} 7. Nbd2 {[%clk 0:02:43]}  Nc5 {[%clk 0:02:53]} 8. Bc2 {[%clk 0:02:33]}  Bg4 {[%clk 0:02:53]} 9. h3 {[%clk 0:02:32]}  Bh5 {[%clk 0:02:53]} 10. O-O {[%clk 0:02:28]}  Be7 {[%clk 0:02:53]} 11. Re1 {[%clk 0:02:26]}  d4 {[%clk 0:02:47]} 12. Bf5 {[%clk 0:01:15]}  dxc3 {[%clk 0:02:29]} 13. bxc3 {[%clk 0:01:16]}  Nd3 {[%clk 0:02:27]} 14. Re3 {[%clk 0:01:15]}  Ndxe5 {[%clk 0:01:48]} 15. g4 {[%clk 0:01:14]}  Nxf3+ {[%clk 0:01:47]} 16. Qxf3 {[%clk 0:01:15]}  Bg6 {[%clk 0:01:47]} 17. Bxg6 {[%clk 0:00:58]}  hxg6 {[%clk 0:01:44]} 18. Rb1 {[%clk 0:00:59]}  O-O {[%clk 0:01:15]} 19. Rxb7 {[%clk 0:00:58]}  Qd7 {[%clk 0:01:10]} 20. Nc4 {[%clk 0:00:45]}  Rab8 {[%clk 0:00:58]} 21. Rxb8 {[%clk 0:00:41]}  Rxb8 {[%clk 0:00:59]} 22. Re1 {[%clk 0:00:39]}  Bf8 {[%clk 0:00:47]} 23. Bf4 {[%clk 0:00:36]}  Rd8 {[%clk 0:00:35]} 24. Kg2 {[%clk 0:00:33]}  f6 {[%clk 0:00:31]} 25. Qe4 {[%clk 0:00:28]}  g5 {[%clk 0:00:29]} 26. Bg3 {[%clk 0:00:28]}  Qd5 {[%clk 0:00:27]} 27. Bxc7 {[%clk 0:00:24]}  Qxe4+ {[%clk 0:00:23]} 28. Rxe4 {[%clk 0:00:25]}  Rd3 {[%clk 0:00:21]} 29. Re3 {[%clk 0:00:25]}  Rd5 {[%clk 0:00:19]} 30. Bg3 {[%clk 0:00:16]}  Kf7 {[%clk 0:00:19]} 31. Kf3 {[%clk 0:00:13]}  Rc5 {[%clk 0:00:19]} 32. Nd2 {[%clk 0:00:12]}  Na5 {[%clk 0:00:18]} 33. Ke2 {[%clk 0:00:08]}  Rc8 {[%clk 0:00:19]} 34. Kd3 {[%clk 0:00:07]}  Rd8+ {[%clk 0:00:17]} 35. Kc2 {[%clk 0:00:08]}  Bc5 {[%clk 0:00:17]} 36. Re2 {[%clk 0:00:08]}  Rd7 {[%clk 0:00:16]} 37. Nb3 {[%clk 0:00:08]}  Bb6 {[%clk 0:00:15]} 38. Nxa5 {[%clk 0:00:08]}  Bxa5 {[%clk 0:00:16]} 39. c4 {[%clk 0:00:06]}  Rd4 {[%clk 0:00:15]} 40. Kb3 {[%clk 0:00:06]}  Rd3+ {[%clk 0:00:16]} 41. Ka4 {[%clk 0:00:06]}  Bb6 {[%clk 0:00:15]} 42. Rc2 {[%clk 0:00:06]}  Bc5 {[%clk 0:00:13]} 43. Kb5 {[%clk 0:00:06]}  Be7 {[%clk 0:00:11]} 44. c5 {[%clk 0:00:07]}  Ke8 {[%clk 0:00:11]} 45. c6 {[%clk 0:00:07]}  Kd8 {[%clk 0:00:10]} 46. Ka6 {[%clk 0:00:07]}  Kc8 {[%clk 0:00:09]} 47. Kb5 {[%clk 0:00:05]}  Rd5+ {[%clk 0:00:09]} 48. Kc4 {[%clk 0:00:02]}  Rc5+ {[%clk 0:00:08]} 49. Kd3 {[%clk 0:00:03]}  Ra5 {[%clk 0:00:08]} 50. Ke4 {[%clk 0:00:03]}  g6 {[%clk 0:00:07]} 51. Rb2 {[%clk 0:00:03]}  f5+ {[%clk 0:00:06]} 52. gxf5 {[%clk 0:00:03]}  gxf5+ {[%clk 0:00:07]} 53. Kd3 {[%clk 0:00:03]}  f4 {[%clk 0:00:07]} 54. Bh2 {[%clk 0:00:04]}  Rc5 {[%clk 0:00:08]} 55. Ke4 {[%clk 0:00:04]}  Rxc6 {[%clk 0:00:08]} 56. Kf5 {[%clk 0:00:04]}  Bd8 {[%clk 0:00:07]} 57. Re2 {[%clk 0:00:04]}  Rc5+ {[%clk 0:00:07]} 58. Kg4 {[%clk 0:00:04]}  Ra5 {[%clk 0:00:07]} 59. f3 {[%clk 0:00:04]}  Kd7 {[%clk 0:00:06]} 60. Bg1 {[%clk 0:00:05]}  Be7 {[%clk 0:00:06]} 61. Rd2+ {[%clk 0:00:05]}  Ke8 {[%clk 0:00:06]} 62. Re2 {[%clk 0:00:05]}  Kf7 {[%clk 0:00:06]} 63. Bd4 {[%clk 0:00:06]}  Bf6 {[%clk 0:00:06]} 64. Bf2 {[%clk 0:00:04]}  Be7 {[%clk 0:00:06]} 65. Rc2 {[%clk 0:00:04]}  Ra4 {[%clk 0:00:05]} 66. Rc7 {[%clk 0:00:04]}  Rxa2 {[%clk 0:00:03]} 67. Bc5 {[%clk 0:00:03]}  Kg6 {[%clk 0:00:04]} 68. Rc6+ {[%clk 0:00:02]}  Kf7 {[%clk 0:00:04]} 69. Bxe7 {[%clk 0:00:01]}  Kxe7 {[%clk 0:00:05]} 70. Kxg5 {[%clk 0:00:01]}  Rh2 {[%clk 0:00:05]} 71. Kg4 {[%clk 0:00:02]}  a5 {[%clk 0:00:05]} 72. Ra6 {[%clk 0:00:02]}  Rg2+ {[%clk 0:00:04]} 73. Kxf4 {[%clk 0:00:02]}  Kf7 {[%clk 0:00:05]} 74. h4 {[%clk 0:00:02]}  Ra2 {[%clk 0:00:03]} 75. h5 {[%clk 0:00:02]}  Kg7 {[%clk 0:00:03]} 76. Kg5 {[%clk 0:00:03]}  Kh7 {[%clk 0:00:03]} 77. Ra7+ {[%clk 0:00:02]}  Kh8 {[%clk 0:00:04]} 78. f4 {[%clk 0:00:03]}  Rg2+ {[%clk 0:00:04]} 79. Kf6 {[%clk 0:00:03]}  Rh2 {[%clk 0:00:04]} 80. Kg6 {[%clk 0:00:04]}  Rg2+ {[%clk 0:00:04]} 81. Kh6 {[%clk 0:00:04]}  Rg8 {[%clk 0:00:04]} 82. Rh7# {[%clk 0:00:04]} 1-0


[Site "https://www.chess.com"]

[Event "Titled Tuesday Blitz September 13 Late 2022"]
[White "Tisaj, Domen"]
[Black "Bluebaum, Matthias"]
[WhiteFideId "14628708"]
[BlackFideId "24651516"]
[WhiteElo "2352"]
[BlackElo "2633"]
[Result "0-1"]
[Round "02"]
[TimeControl "180+1"]
[Date "2022.09.13"]
[WhiteClock "0:00:01"]
[BlackClock "0:00:24"]

1. d4 {[%clk 0:03:00]}  Nf6 {[%clk 0:03:00]} 2. c4 {[%clk 0:03:00]}  e6 {[%clk 0:03:01]} 3. Nf3 {[%clk 0:03:01]}  d5 {[%clk 0:03:01]} 4. Nc3 {[%clk 0:03:01]}  Bb4 {[%clk 0:03:01]} 5. cxd5 {[%clk 0:02:59]}  exd5 {[%clk 0:03:02]} 6. Bg5 {[%clk 0:02:59]}  h6 {[%clk 0:03:03]} 7. Bxf6 {[%clk 0:02:58]}  Qxf6 {[%clk 0:03:04]} 8. Qa4+ {[%clk 0:02:55]}  Nc6 {[%clk 0:03:04]} 9. e3 {[%clk 0:02:56]}  O-O {[%clk 0:03:05]} 10. Bd3 {[%clk 0:02:55]}  Be6 {[%clk 0:03:05]} 11. O-O {[%clk 0:02:53]}  a6 {[%clk 0:03:05]} 12. Qb3 {[%clk 0:02:51]}  Rfd8 {[%clk 0:02:35]} 13. a3 {[%clk 0:02:48]}  Bd6 {[%clk 0:02:35]} 14. Rac1 {[%clk 0:02:30]}  g5 {[%clk 0:02:29]} 15. Nd2 {[%clk 0:02:23]}  g4 {[%clk 0:02:17]} 16. f4 {[%clk 0:01:52]}  Nxd4 {[%clk 0:02:14]} 17. Qd1 {[%clk 0:01:44]}  h5 {[%clk 0:02:00]} 18. Kh1 {[%clk 0:01:42]}  Nf5 {[%clk 0:02:00]} 19. Qe1 {[%clk 0:01:37]}  Re8 {[%clk 0:01:56]} 20. e4 {[%clk 0:01:37]}  dxe4 {[%clk 0:01:56]} 21. Ndxe4 {[%clk 0:01:37]}  Qg7 {[%clk 0:01:57]} 22. Qf2 {[%clk 0:01:29]}  Be7 {[%clk 0:01:51]} 23. Ng5 {[%clk 0:01:26]}  Rad8 {[%clk 0:01:40]} 24. Nxe6 {[%clk 0:01:25]}  fxe6 {[%clk 0:01:40]} 25. Bc4 {[%clk 0:01:26]}  Kh8 {[%clk 0:01:36]} 26. Bxe6 {[%clk 0:01:20]}  Bh4 {[%clk 0:01:35]} 27. Qc5 {[%clk 0:01:20]}  Rxe6 {[%clk 0:01:15]} 28. Qxf5 {[%clk 0:01:20]}  Qg6 {[%clk 0:01:16]} 29. Qxg6 {[%clk 0:00:54]}  Rxg6 {[%clk 0:01:17]} 30. Ne4 {[%clk 0:00:51]}  c6 {[%clk 0:00:58]} 31. g3 {[%clk 0:00:46]}  Be7 {[%clk 0:00:58]} 32. f5 {[%clk 0:00:45]}  Rgg8 {[%clk 0:00:58]} 33. f6 {[%clk 0:00:40]}  Bf8 {[%clk 0:00:58]} 34. Rcd1 {[%clk 0:00:39]}  Bh6 {[%clk 0:00:49]} 35. f7 {[%clk 0:00:29]}  Rgf8 {[%clk 0:00:46]} 36. Rxd8 {[%clk 0:00:28]}  Rxd8 {[%clk 0:00:46]} 37. Nc5 {[%clk 0:00:25]}  Bf8 {[%clk 0:00:26]} 38. Ne6 {[%clk 0:00:23]}  Rc8 {[%clk 0:00:27]} 39. Rf6 {[%clk 0:00:13]}  Kh7 {[%clk 0:00:23]} 40. b4 {[%clk 0:00:09]}  b6 {[%clk 0:00:20]} 41. Kg2 {[%clk 0:00:07]}  c5 {[%clk 0:00:21]} 42. bxc5 {[%clk 0:00:08]}  bxc5 {[%clk 0:00:22]} 43. Nxf8+ {[%clk 0:00:08]}  Rxf8 {[%clk 0:00:22]} 44. Rf5 {[%clk 0:00:08]}  Kg6 {[%clk 0:00:21]} 45. Rxc5 {[%clk 0:00:08]}  Rxf7 {[%clk 0:00:22]} 46. Rc6+ {[%clk 0:00:09]}  Rf6 {[%clk 0:00:22]} 47. Rc5 {[%clk 0:00:07]}  Rb6 {[%clk 0:00:21]} 48. Rc2 {[%clk 0:00:06]}  Kf5 {[%clk 0:00:20]} 49. Re2 {[%clk 0:00:06]}  Rb3 {[%clk 0:00:20]} 50. Ra2 {[%clk 0:00:06]}  a5 {[%clk 0:00:20]} 51. a4 {[%clk 0:00:06]}  Rb4 {[%clk 0:00:20]} 52. h3 {[%clk 0:00:05]}  Ke4 {[%clk 0:00:20]} 53. hxg4 {[%clk 0:00:05]}  hxg4 {[%clk 0:00:21]} 54. Rf2 {[%clk 0:00:06]}  Ke3 {[%clk 0:00:21]} 55. Ra2 {[%clk 0:00:05]}  Rd4 {[%clk 0:00:21]} 56. Ra3+ {[%clk 0:00:05]}  Rd3 {[%clk 0:00:22]} 57. Rxd3+ {[%clk 0:00:03]}  Kxd3 {[%clk 0:00:23]} 58. Kf2 {[%clk 0:00:03]}  Kd2 {[%clk 0:00:23]} 59. Kf1 {[%clk 0:00:01]}  Ke3 {[%clk 0:00:24]} 0-1


[Site "https://www.chess.com"]

[Event "Titled Tuesday Blitz September 13 Late 2022"]
[White "Tomiello, Lucas Costamilan"]
[Black "Shimanov, Aleksandr"]
[WhiteFideId "22701940"]
[BlackFideId "4198603"]
[WhiteElo "1998"]
[BlackElo "2605"]
[Result "0-1"]
[Round "02"]
[TimeControl "180+1"]
[Date "2022.09.13"]
[WhiteClock "0:00:19"]
[BlackClock "0:01:34"]

1. e4 {[%clk 0:02:58]}  d5 {[%clk 0:02:54]} 2. exd5 {[%clk 0:02:56]}  Qxd5 {[%clk 0:02:55]} 3. Nc3 {[%clk 0:02:55]}  Qe5+ {[%clk 0:02:56]} 4. Be2 {[%clk 0:02:54]}  Bg4 {[%clk 0:02:55]} 5. d4 {[%clk 0:02:54]}  Bxe2 {[%clk 0:02:55]} 6. Ngxe2 {[%clk 0:02:55]}  Qa5 {[%clk 0:02:55]} 7. O-O {[%clk 0:02:54]}  Nf6 {[%clk 0:02:55]} 8. Re1 {[%clk 0:02:54]}  Nc6 {[%clk 0:02:54]} 9. d5 {[%clk 0:02:41]}  O-O-O {[%clk 0:02:54]} 10. Nf4 {[%clk 0:02:35]}  e5 {[%clk 0:02:52]} 11. Nd3 {[%clk 0:02:10]}  Nxd5 {[%clk 0:02:50]} 12. Qg4+ {[%clk 0:02:04]}  Kb8 {[%clk 0:02:43]} 13. Nxe5 {[%clk 0:01:29]}  Nxe5 {[%clk 0:02:16]} 14. Rxe5 {[%clk 0:01:30]}  Nf6 {[%clk 0:02:02]} 15. Rxa5 {[%clk 0:01:23]}  Nxg4 {[%clk 0:02:01]} 16. Bf4 {[%clk 0:01:12]}  Nf6 {[%clk 0:01:40]} 17. Nb5 {[%clk 0:01:04]}  Nd5 {[%clk 0:01:38]} 18. Rd1 {[%clk 0:00:55]}  Bb4 {[%clk 0:01:36]} 19. Ra4 {[%clk 0:00:22]}  Nxf4 {[%clk 0:01:35]} 20. Rxd8+ {[%clk 0:00:22]}  Rxd8 {[%clk 0:01:34]} 21. g3 {[%clk 0:00:19]}  Rd1# {[%clk 0:01:34]} 0-1


[Site "https://www.chess.com"]

[Event "Titled Tuesday Blitz September 13 Late 2022"]
[White "Trost, Edvin"]
[Black "Paravyan, David"]
[WhiteFideId "1729519"]
[BlackFideId "4194985"]
[WhiteElo "2186"]
[BlackElo "2555"]
[Result "1-0"]
[Round "02"]
[TimeControl "180+1"]
[Date "2022.09.13"]
[WhiteClock "0:00:09"]
[BlackClock "0:00:06"]

1. d4 {[%clk 0:03:00]}  Nf6 {[%clk 0:02:59]} 2. c4 {[%clk 0:02:52]}  g6 {[%clk 0:02:59]} 3. Nc3 {[%clk 0:02:51]}  d5 {[%clk 0:02:58]} 4. Bf4 {[%clk 0:02:51]}  Bg7 {[%clk 0:02:58]} 5. e3 {[%clk 0:02:47]}  c5 {[%clk 0:02:49]} 6. dxc5 {[%clk 0:02:48]}  Qa5 {[%clk 0:02:48]} 7. Rc1 {[%clk 0:02:48]}  Nbd7 {[%clk 0:02:48]} 8. cxd5 {[%clk 0:02:38]}  O-O {[%clk 0:02:39]} 9. Bc4 {[%clk 0:02:36]}  Nxc5 {[%clk 0:02:04]} 10. Ne2 {[%clk 0:02:34]}  Qb4 {[%clk 0:01:14]} 11. Bb3 {[%clk 0:02:17]}  Bf5 {[%clk 0:01:11]} 12. Bc2 {[%clk 0:01:43]}  Bxc2 {[%clk 0:00:58]} 13. Qxc2 {[%clk 0:01:38]}  Qc4 {[%clk 0:00:30]} 14. Rd1 {[%clk 0:01:36]}  Nfe4 {[%clk 0:00:29]} 15. O-O {[%clk 0:01:31]}  Nxc3 {[%clk 0:00:27]} 16. Nxc3 {[%clk 0:01:31]}  Rac8 {[%clk 0:00:27]} 17. d6 {[%clk 0:01:29]}  exd6 {[%clk 0:00:26]} 18. Bxd6 {[%clk 0:01:30]}  Rfd8 {[%clk 0:00:21]} 19. Bxc5 {[%clk 0:01:30]}  Qxc5 {[%clk 0:00:22]} 20. Rxd8+ {[%clk 0:01:18]}  Rxd8 {[%clk 0:00:23]} 21. Rc1 {[%clk 0:01:18]}  Bxc3 {[%clk 0:00:22]} 22. bxc3 {[%clk 0:01:16]}  Qd6 {[%clk 0:00:21]} 23. g3 {[%clk 0:01:15]}  Qd2 {[%clk 0:00:20]} 24. Kg2 {[%clk 0:01:15]}  b6 {[%clk 0:00:20]} 25. a4 {[%clk 0:01:12]}  h5 {[%clk 0:00:19]} 26. a5 {[%clk 0:01:06]}  bxa5 {[%clk 0:00:17]} 27. Qxd2 {[%clk 0:01:04]}  Rxd2 {[%clk 0:00:18]} 28. Ra1 {[%clk 0:01:05]}  Rd5 {[%clk 0:00:18]} 29. Kf3 {[%clk 0:01:05]}  Rc5 {[%clk 0:00:18]} 30. Ra3 {[%clk 0:01:04]}  Kf8 {[%clk 0:00:11]} 31. Ke4 {[%clk 0:01:05]}  Ke7 {[%clk 0:00:12]} 32. Kd4 {[%clk 0:01:05]}  Rb5 {[%clk 0:00:08]} 33. f4 {[%clk 0:00:47]}  Rb2 {[%clk 0:00:06]} 34. Rxa5 {[%clk 0:00:47]}  Rxh2 {[%clk 0:00:06]} 35. Rxa7+ {[%clk 0:00:48]}  Ke6 {[%clk 0:00:07]} 36. Ke4 {[%clk 0:00:46]}  Rf2 {[%clk 0:00:04]} 37. Ra6+ {[%clk 0:00:46]}  Ke7 {[%clk 0:00:04]} 38. Rc6 {[%clk 0:00:45]}  Kf8 {[%clk 0:00:04]} 39. c4 {[%clk 0:00:41]}  Kg7 {[%clk 0:00:04]} 40. Rd6 {[%clk 0:00:36]}  Rc2 {[%clk 0:00:04]} 41. Rd4 {[%clk 0:00:28]}  Kf6 {[%clk 0:00:03]} 42. Kd5 {[%clk 0:00:25]}  Ke7 {[%clk 0:00:03]} 43. c5 {[%clk 0:00:24]}  Kd7 {[%clk 0:00:03]} 44. Rd3 {[%clk 0:00:23]}  Rg2 {[%clk 0:00:02]} 45. e4 {[%clk 0:00:23]}  f6 {[%clk 0:00:02]} 46. e5 {[%clk 0:00:22]}  fxe5 {[%clk 0:00:03]} 47. Kxe5+ {[%clk 0:00:23]}  Ke7 {[%clk 0:00:02]} 48. Rc3 {[%clk 0:00:23]}  Re2+ {[%clk 0:00:01]} 49. Kd5 {[%clk 0:00:23]}  Kd7 {[%clk 0:00:02]} 50. c6+ {[%clk 0:00:23]}  Kc7 {[%clk 0:00:02]} 51. Kd4 {[%clk 0:00:24]}  Rg2 {[%clk 0:00:02]} 52. Ke5 {[%clk 0:00:23]}  Rd2 {[%clk 0:00:02]} 53. Kf6 {[%clk 0:00:23]}  Rd6+ {[%clk 0:00:02]} 54. Kg5 {[%clk 0:00:23]}  Re6 {[%clk 0:00:02]} 55. Kh6 {[%clk 0:00:11]}  Rd6 {[%clk 0:00:03]} 56. Kg7 {[%clk 0:00:11]}  Re6 {[%clk 0:00:03]} 57. Kf7 {[%clk 0:00:12]}  Rd6 {[%clk 0:00:04]} 58. Ke7 {[%clk 0:00:12]}  Rd5 {[%clk 0:00:03]} 59. Ke6 {[%clk 0:00:12]}  Rd6+ {[%clk 0:00:03]} 60. Ke5 {[%clk 0:00:13]}  Rd1 {[%clk 0:00:02]} 61. Kf6 {[%clk 0:00:12]}  Rd6+ {[%clk 0:00:02]} 62. Kg5 {[%clk 0:00:12]}  Re6 {[%clk 0:00:02]} 63. f5 {[%clk 0:00:12]}  gxf5 {[%clk 0:00:03]} 64. Kxh5 {[%clk 0:00:10]}  Rd6 {[%clk 0:00:02]} 65. Kg5 {[%clk 0:00:10]}  Rd5 {[%clk 0:00:02]} 66. Kf6 {[%clk 0:00:10]}  Ra5 {[%clk 0:00:03]} 67. Rf3 {[%clk 0:00:08]}  Kxc6 {[%clk 0:00:03]} 68. Rxf5 {[%clk 0:00:09]}  Ra1 {[%clk 0:00:03]} 69. Re5 {[%clk 0:00:08]}  Kd7 {[%clk 0:00:03]} 70. g4 {[%clk 0:00:08]}  Rf1+ {[%clk 0:00:04]} 71. Kg6 {[%clk 0:00:08]}  Kd6 {[%clk 0:00:03]} 72. Re2 {[%clk 0:00:04]}  Rf3 {[%clk 0:00:03]} 73. g5 {[%clk 0:00:04]}  Kd7 {[%clk 0:00:04]} 74. Kh6 {[%clk 0:00:05]}  Rh3+ {[%clk 0:00:04]} 75. Kg7 {[%clk 0:00:05]}  Rg3 {[%clk 0:00:04]} 76. g6 {[%clk 0:00:05]}  Rg1 {[%clk 0:00:05]} 77. Kh7 {[%clk 0:00:06]}  Rh1+ {[%clk 0:00:05]} 78. Kg8 {[%clk 0:00:06]}  Kd6 {[%clk 0:00:05]} 79. g7 {[%clk 0:00:06]}  Rg1 {[%clk 0:00:05]} 80. Re4 {[%clk 0:00:06]}  Rg2 {[%clk 0:00:05]} 81. Re3 {[%clk 0:00:03]}  Rg1 {[%clk 0:00:04]} 82. Re2 {[%clk 0:00:03]}  Rg4 {[%clk 0:00:04]} 83. Kf7 {[%clk 0:00:01]}  Rf4+ {[%clk 0:00:05]} 84. Kg6 {[%clk 0:00:02]}  Rg4+ {[%clk 0:00:05]} 85. Kh6 {[%clk 0:00:03]}  Rg1 {[%clk 0:00:06]} 86. Kh7 {[%clk 0:00:03]}  Rh1+ {[%clk 0:00:06]} 87. Kg6 {[%clk 0:00:04]}  Rg1+ {[%clk 0:00:07]} 88. Kf7 {[%clk 0:00:04]}  Rf1+ {[%clk 0:00:07]} 89. Kg8 {[%clk 0:00:05]}  Kd7 {[%clk 0:00:06]} 90. Re5 {[%clk 0:00:05]}  Kd6 {[%clk 0:00:06]} 91. Rg5 {[%clk 0:00:05]}  Ke7 {[%clk 0:00:06]} 92. Kh7 {[%clk 0:00:05]}  Kf6 {[%clk 0:00:01]} 93. Rg6+ {[%clk 0:00:04]}  Ke5 {[%clk 0:00:01]} 94. g8=Q {[%clk 0:00:04]}  Rh1+ {[%clk 0:00:02]} 95. Kg7 {[%clk 0:00:05]}  Rc1 {[%clk 0:00:03]} 96. Qe8+ {[%clk 0:00:05]}  Kd4 {[%clk 0:00:04]} 97. Rg4+ {[%clk 0:00:06]}  Kd3 {[%clk 0:00:04]} 98. Qe4+ {[%clk 0:00:06]}  Kc3 {[%clk 0:00:03]} 99. Rg3+ {[%clk 0:00:06]}  Kb2 {[%clk 0:00:03]} 100. Qb4+ {[%clk 0:00:07]}  Ka1 {[%clk 0:00:04]} 101. Qa3+ {[%clk 0:00:07]}  Kb1 {[%clk 0:00:04]} 102. Rb3+ {[%clk 0:00:07]}  Kc2 {[%clk 0:00:04]} 103. Qb2+ {[%clk 0:00:08]}  Kd1 {[%clk 0:00:05]} 104. Rd3+ {[%clk 0:00:09]}  Ke1 {[%clk 0:00:06]} 105. Qd2+ {[%clk 0:00:09]} 1-0


[Site "https://www.chess.com"]